[Event "December 19 Early 2023"]
[Site "https://www.chess.com"]
[Date "2023.12.19"]
[Round "6"]
[White "Filippova, Margarita"]
[Black "Navyblue1"]
[Result "0-1"]
[Board "198"]
[TimeControl "180+1"]
[WhiteFideId "34199680"]
[WhiteElo "1916"]
[BlackElo "2057"]
[WhiteTeam "RUS"]
[WhiteClock "0:01:10"]
[BlackClock "0:00:18"]

1. e4 {[%clk 0:03:00]}  c5 {[%clk 0:02:59]} 2. Nf3 {[%clk 0:02:56]}  d6 {[%clk 0:02:58]} 3. d4 {[%clk 0:02:56]}  cxd4 {[%clk 0:02:59]} 4. Qxd4 {[%clk 0:02:57]}  a6 {[%clk 0:02:58]} 5. Be3 {[%clk 0:02:54]}  Nc6 {[%clk 0:02:57]} 6. Qd2 {[%clk 0:02:55]}  g6 {[%clk 0:02:51]} 7. Nc3 {[%clk 0:02:55]}  Bg7 {[%clk 0:02:50]} 8. h3 {[%clk 0:02:45]}  Nf6 {[%clk 0:02:43]} 9. Be2 {[%clk 0:02:43]}  O-O {[%clk 0:02:37]} 10. Nd4 {[%clk 0:02:42]}  Nxd4 {[%clk 0:02:22]} 11. Bxd4 {[%clk 0:02:43]}  Be6 {[%clk 0:02:14]} 12. O-O {[%clk 0:02:40]}  Rc8 {[%clk 0:02:12]} 13. Rad1 {[%clk 0:02:12]}  b5 {[%clk 0:01:31]} 14. a3 {[%clk 0:02:10]}  Bc4 {[%clk 0:01:16]} 15. f4 {[%clk 0:02:06]}  Qc7 {[%clk 0:00:44]} 16. Kh1 {[%clk 0:01:57]}  Rfd8 {[%clk 0:00:36]} 17. f5 {[%clk 0:01:52]}  Qc6 {[%clk 0:00:20]} 18. Bf3 {[%clk 0:01:44]}  Bxf1 {[%clk 0:00:19]} 19. Rxf1 {[%clk 0:01:39]}  Qc4 {[%clk 0:00:19]} 20. g4 {[%clk 0:01:32]}  Qxf1+ {[%clk 0:00:18]} 21. Kh2 {[%clk 0:01:10]}  Qxf3 {[%clk 0:00:18]} 0-1

[Event "December 19 Early 2023"]
[Site "https://www.chess.com"]
[Date "2023.12.19"]
[Round "6"]
[White "Marinakis, Hristos"]
[Black "Olcayoz, Gizem"]
[Result "1-0"]
[Board "201"]
[TimeControl "180+1"]
[WhiteFideId "4294661"]
[BlackFideId "6301444"]
[WhiteElo "2297"]
[BlackElo "1856"]
[WhiteTeam "GRE"]
[BlackTeam "TUR"]
[WhiteClock "0:00:14"]
[BlackClock "0:00:03"]

1. Nf3 {[%clk 0:02:57]}  f5 {[%clk 0:02:59]} 2. g3 {[%clk 0:02:55]}  Nf6 {[%clk 0:02:59]} 3. Bg2 {[%clk 0:02:55]}  d6 {[%clk 0:02:59]} 4. d4 {[%clk 0:02:54]}  e6 {[%clk 0:02:59]} 5. O-O {[%clk 0:02:54]}  Be7 {[%clk 0:03:00]} 6. c4 {[%clk 0:02:52]}  O-O {[%clk 0:03:00]} 7. Nc3 {[%clk 0:02:52]}  Ne4 {[%clk 0:03:01]} 8. Nd2 {[%clk 0:02:41]}  Nxc3 {[%clk 0:02:58]} 9. bxc3 {[%clk 0:02:41]}  e5 {[%clk 0:02:53]} 10. c5 {[%clk 0:02:17]}  e4 {[%clk 0:02:41]} 11. cxd6 {[%clk 0:02:17]}  cxd6 {[%clk 0:02:31]} 12. Rb1 {[%clk 0:01:41]}  b6 {[%clk 0:02:09]} 13. f3 {[%clk 0:01:21]}  d5 {[%clk 0:02:02]} 14. fxe4 {[%clk 0:01:10]}  dxe4 {[%clk 0:01:55]} 15. Nxe4 {[%clk 0:00:43]}  Bb7 {[%clk 0:01:07]} 16. Nf6+ {[%clk 0:00:40]}  Rxf6 {[%clk 0:01:04]} 17. Bxb7 {[%clk 0:00:41]}  Nd7 {[%clk 0:01:05]} 18. Bxa8 {[%clk 0:00:29]}  Qxa8 {[%clk 0:01:05]} 19. Bg5 {[%clk 0:00:29]}  Qe4 {[%clk 0:00:51]} 20. Bxf6 {[%clk 0:00:20]}  Qe3+ {[%clk 0:00:47]} 21. Kg2 {[%clk 0:00:20]}  Qe4+ {[%clk 0:00:42]} 22. Rf3 {[%clk 0:00:20]}  Nxf6 {[%clk 0:00:35]} 23. Qd3 {[%clk 0:00:20]}  Qc6 {[%clk 0:00:31]} 24. Qxf5 {[%clk 0:00:19]}  g6 {[%clk 0:00:30]} 25. Qe5 {[%clk 0:00:17]}  Ng4 {[%clk 0:00:03]} 26. Qxe7 {[%clk 0:00:14]} 1-0

[Event "December 19 Early 2023"]
[Site "https://www.chess.com"]
[Date "2023.12.19"]
[Round "6"]
[White "BeReal24"]
[Black "Vargas, Mauricio"]
[Result "1-0"]
[Board "203"]
[TimeControl "180+1"]
[BlackFideId "4404572"]
[WhiteElo "2498"]
[BlackElo "1982"]
[BlackTeam "COL"]
[WhiteClock "0:00:43"]
[BlackClock "0:00:00"]

1. d4 {[%clk 0:03:00]}  d5 {[%clk 0:02:59]} 2. c4 {[%clk 0:02:54]}  e6 {[%clk 0:02:59]} 3. Nc3 {[%clk 0:02:48]}  c6 {[%clk 0:02:58]} 4. Nf3 {[%clk 0:01:43]}  dxc4 {[%clk 0:02:56]} 5. a4 {[%clk 0:01:39]}  Bb4 {[%clk 0:02:55]} 6. e3 {[%clk 0:01:38]}  b5 {[%clk 0:02:54]} 7. axb5 {[%clk 0:01:36]}  cxb5 {[%clk 0:02:54]} 8. Bd2 {[%clk 0:01:37]}  Bxc3 {[%clk 0:02:54]} 9. bxc3 {[%clk 0:01:35]}  Qc7 {[%clk 0:02:48]} 10. Ne5 {[%clk 0:01:33]}  Nf6 {[%clk 0:02:46]} 11. Be2 {[%clk 0:01:30]}  O-O {[%clk 0:02:45]} 12. O-O {[%clk 0:01:28]}  Bb7 {[%clk 0:02:45]} 13. f3 {[%clk 0:01:28]}  Nbd7 {[%clk 0:02:39]} 14. Nxd7 {[%clk 0:01:26]}  Qxd7 {[%clk 0:02:39]} 15. Qb1 {[%clk 0:01:24]}  a6 {[%clk 0:02:36]} 16. Bc1 {[%clk 0:01:23]}  Rfb8 {[%clk 0:02:35]} 17. Ba3 {[%clk 0:01:23]}  Nd5 {[%clk 0:02:27]} 18. Qb2 {[%clk 0:01:21]}  Nxe3 {[%clk 0:02:22]} 19. Rfb1 {[%clk 0:01:21]}  Nd5 {[%clk 0:02:07]} 20. Bc5 {[%clk 0:01:17]}  h6 {[%clk 0:01:57]} 21. Ra5 {[%clk 0:01:16]}  Qc7 {[%clk 0:01:41]} 22. Rba1 {[%clk 0:01:14]}  Qf4 {[%clk 0:01:22]} 23. Kh1 {[%clk 0:00:59]}  Ne3 {[%clk 0:01:10]} 24. Qc1 {[%clk 0:00:54]}  Qg5 {[%clk 0:01:04]} 25. g3 {[%clk 0:00:53]}  Ng4 {[%clk 0:00:33]} 26. Qxg5 {[%clk 0:00:51]}  hxg5 {[%clk 0:00:32]} 27. Kg1 {[%clk 0:00:51]}  Nf6 {[%clk 0:00:28]} 28. Kf2 {[%clk 0:00:49]}  Nd5 {[%clk 0:00:28]} 29. R1a3 {[%clk 0:00:48]}  Re8 {[%clk 0:00:25]} 30. Bd1 {[%clk 0:00:48]}  e5 {[%clk 0:00:24]} 31. dxe5 {[%clk 0:00:47]}  Rxe5 {[%clk 0:00:22]} 32. Bd4 {[%clk 0:00:47]}  Ree8 {[%clk 0:00:20]} 33. Ra2 {[%clk 0:00:46]}  f6 {[%clk 0:00:16]} 34. Bc2 {[%clk 0:00:46]}  Kf7 {[%clk 0:00:14]} 35. Be4 {[%clk 0:00:44]}  g6 {[%clk 0:00:13]} 36. Bxd5+ {[%clk 0:00:44]}  Bxd5 {[%clk 0:00:13]} 37. Rxa6 {[%clk 0:00:45]}  Rxa6 {[%clk 0:00:13]} 38. Rxa6 {[%clk 0:00:45]}  Rb8 {[%clk 0:00:12]} 39. Ra7+ {[%clk 0:00:45]}  Ke8 {[%clk 0:00:00]} 40. Bxf6 {[%clk 0:00:43]} 1-0

[Event "December 19 Early 2023"]
[Site "https://www.chess.com"]
[Date "2023.12.19"]
[Round "6"]
[White "Kornyukov, Alexey"]
[Black "Igel2023"]
[Result "1-0"]
[Board "204"]
[TimeControl "180+1"]
[WhiteFideId "4150457"]
[WhiteElo "2352"]
[BlackElo "2198"]
[WhiteTeam "RUS"]
[WhiteClock "0:02:04"]
[BlackClock "0:01:51"]

1. e4 {[%clk 0:03:00]}  e6 {[%clk 0:02:59]} 2. d4 {[%clk 0:02:58]}  d5 {[%clk 0:02:58]} 3. Nc3 {[%clk 0:02:56]}  dxe4 {[%clk 0:02:58]} 4. Nxe4 {[%clk 0:02:54]}  Nd7 {[%clk 0:02:59]} 5. Nf3 {[%clk 0:02:53]}  Ngf6 {[%clk 0:02:59]} 6. Bg5 {[%clk 0:02:51]}  Be7 {[%clk 0:02:58]} 7. Bxf6 {[%clk 0:02:48]}  Nxf6 {[%clk 0:02:57]} 8. Nxf6+ {[%clk 0:02:47]}  Bxf6 {[%clk 0:02:57]} 9. c3 {[%clk 0:02:46]}  O-O {[%clk 0:02:54]} 10. Bd3 {[%clk 0:02:45]}  Qd6 {[%clk 0:02:44]} 11. Qe2 {[%clk 0:02:40]}  c5 {[%clk 0:02:38]} 12. dxc5 {[%clk 0:02:23]}  Qxc5 {[%clk 0:02:38]} 13. O-O {[%clk 0:02:22]}  g6 {[%clk 0:02:33]} 14. Rad1 {[%clk 0:02:19]}  b6 {[%clk 0:02:30]} 15. Qe4 {[%clk 0:02:09]}  Rb8 {[%clk 0:01:51]} 16. Qf4 {[%clk 0:02:04]} 1-0

[Event "December 19 Early 2023"]
[Site "https://www.chess.com"]
[Date "2023.12.19"]
[Round "6"]
[White "Larina, Maria"]
[Black "Hobson, Kenneth"]
[Result "1-0"]
[Board "205"]
[TimeControl "180+1"]
[WhiteFideId "24113182"]
[BlackFideId "480819"]
[WhiteElo "1848"]
[BlackElo "1953"]
[WhiteTeam "FID"]
[BlackTeam "ENG"]
[WhiteClock "0:00:09"]
[BlackClock "0:00:05"]

1. e4 {[%clk 0:02:55]}  e5 {[%clk 0:02:31]} 2. Nf3 {[%clk 0:02:54]}  Nc6 {[%clk 0:02:30]} 3. Nc3 {[%clk 0:02:54]}  Nf6 {[%clk 0:01:04]} 4. Bb5 {[%clk 0:02:52]}  Nd4 {[%clk 0:01:04]} 5. O-O {[%clk 0:02:51]}  Nxb5 {[%clk 0:01:03]} 6. Nxb5 {[%clk 0:02:52]}  d6 {[%clk 0:01:04]} 7. d4 {[%clk 0:02:52]}  c6 {[%clk 0:01:04]} 8. Nc3 {[%clk 0:02:51]}  Bg4 {[%clk 0:01:02]} 9. Be3 {[%clk 0:02:23]}  Qc7 {[%clk 0:01:01]} 10. h3 {[%clk 0:02:23]}  Bh5 {[%clk 0:01:00]} 11. a4 {[%clk 0:02:15]}  Be7 {[%clk 0:01:01]} 12. Qd3 {[%clk 0:01:38]}  O-O {[%clk 0:00:59]} 13. Nd2 {[%clk 0:01:32]}  Rad8 {[%clk 0:00:56]} 14. f4 {[%clk 0:01:27]}  exd4 {[%clk 0:00:54]} 15. Bxd4 {[%clk 0:01:26]}  c5 {[%clk 0:00:52]} 16. Be3 {[%clk 0:01:16]}  d5 {[%clk 0:00:43]} 17. Nxd5 {[%clk 0:01:11]}  Nxd5 {[%clk 0:00:42]} 18. exd5 {[%clk 0:01:12]}  c4 {[%clk 0:00:39]} 19. Nxc4 {[%clk 0:00:49]}  Rfe8 {[%clk 0:00:32]} 20. Bxa7 {[%clk 0:00:46]}  Bc5+ {[%clk 0:00:30]} 21. Bxc5 {[%clk 0:00:45]}  Qxc5+ {[%clk 0:00:31]} 22. Kh2 {[%clk 0:00:45]}  Rxd5 {[%clk 0:00:31]} 23. Qb3 {[%clk 0:00:41]}  Rd4 {[%clk 0:00:25]} 24. Ne5 {[%clk 0:00:37]}  h6 {[%clk 0:00:15]} 25. c3 {[%clk 0:00:37]}  Rd2 {[%clk 0:00:15]} 26. Qxb7 {[%clk 0:00:27]}  Rxe5 {[%clk 0:00:15]} 27. Qb8+ {[%clk 0:00:22]}  Re8 {[%clk 0:00:09]} 28. Qxe8+ {[%clk 0:00:21]}  Kh7 {[%clk 0:00:10]} 29. Qe5 {[%clk 0:00:20]}  Qc6 {[%clk 0:00:07]} 30. Rg1 {[%clk 0:00:18]}  Bf3 {[%clk 0:00:06]} 31. Qf5+ {[%clk 0:00:15]}  Kg8 {[%clk 0:00:05]} 32. Raf1 {[%clk 0:00:11]}  Bxg2 {[%clk 0:00:05]} 33. Rd1 {[%clk 0:00:10]}  Bf3+ {[%clk 0:00:05]} 34. Rxd2 {[%clk 0:00:10]}  Bd1 {[%clk 0:00:05]} 35. Rdxd1 {[%clk 0:00:09]}  g6 {[%clk 0:00:05]} 36. Rd8+ {[%clk 0:00:09]}  Kg7 {[%clk 0:00:05]} 37. Qe5+ {[%clk 0:00:09]}  Kh7 {[%clk 0:00:05]} 38. Rh8# {[%clk 0:00:09]} 1-0

[Event "December 19 Early 2023"]
[Site "https://www.chess.com"]
[Date "2023.12.19"]
[Round "6"]
[White "Nan M K Khine Hlyan"]
[Black "Vila Dupla, Aurelio"]
[Result "1-0"]
[Board "206"]
[TimeControl "180+1"]
[WhiteFideId "13002899"]
[BlackFideId "2203383"]
[WhiteElo "1943"]
[BlackElo "2009"]
[WhiteTeam "MYA"]
[BlackTeam "ESP"]
[WhiteClock "0:00:38"]
[BlackClock "0:00:17"]

1. e4 {[%clk 0:03:00]}  c5 {[%clk 0:02:59]} 2. Nf3 {[%clk 0:03:00]}  d6 {[%clk 0:02:59]} 3. d4 {[%clk 0:03:00]}  cxd4 {[%clk 0:02:59]} 4. Nxd4 {[%clk 0:03:01]}  Nf6 {[%clk 0:02:59]} 5. Nc3 {[%clk 0:02:59]}  g6 {[%clk 0:02:55]} 6. Bc4 {[%clk 0:02:59]}  Bg7 {[%clk 0:02:55]} 7. O-O {[%clk 0:02:57]}  O-O {[%clk 0:02:55]} 8. f4 {[%clk 0:02:56]}  Nc6 {[%clk 0:02:54]} 9. Nxc6 {[%clk 0:02:55]}  bxc6 {[%clk 0:02:54]} 10. e5 {[%clk 0:02:54]}  dxe5 {[%clk 0:02:42]} 11. fxe5 {[%clk 0:02:53]}  Ng4 {[%clk 0:02:29]} 12. e6 {[%clk 0:02:46]}  Qb6+ {[%clk 0:02:29]} 13. Kh1 {[%clk 0:02:43]}  Nf2+ {[%clk 0:02:29]} 14. Rxf2 {[%clk 0:02:42]}  Qxf2 {[%clk 0:02:30]} 15. exf7+ {[%clk 0:02:41]}  Kh8 {[%clk 0:02:26]} 16. Bg5 {[%clk 0:02:37]}  e6 {[%clk 0:01:42]} 17. Be7 {[%clk 0:02:06]}  Qxf7 {[%clk 0:01:40]} 18. Bxf8 {[%clk 0:02:04]}  Bxf8 {[%clk 0:01:23]} 19. Qd2 {[%clk 0:02:02]}  Qd7 {[%clk 0:01:08]} 20. Qf4 {[%clk 0:01:56]}  Bg7 {[%clk 0:01:00]} 21. Rd1 {[%clk 0:01:53]}  Qe7 {[%clk 0:00:56]} 22. Ne4 {[%clk 0:01:46]}  e5 {[%clk 0:00:50]} 23. Qf3 {[%clk 0:01:36]}  Bf5 {[%clk 0:00:44]} 24. Nd6 {[%clk 0:01:33]}  Be6 {[%clk 0:00:40]} 25. Bxe6 {[%clk 0:01:28]}  Qxe6 {[%clk 0:00:40]} 26. Nf7+ {[%clk 0:01:07]}  Kg8 {[%clk 0:00:39]} 27. Ng5 {[%clk 0:01:05]}  Qf6 {[%clk 0:00:33]} 28. Ne4 {[%clk 0:01:00]}  Qxf3 {[%clk 0:00:33]} 29. gxf3 {[%clk 0:00:59]}  Rf8 {[%clk 0:00:27]} 30. Kg2 {[%clk 0:00:57]}  h6 {[%clk 0:00:25]} 31. Rd6 {[%clk 0:00:55]}  Kh7 {[%clk 0:00:22]} 32. Rxc6 {[%clk 0:00:53]}  Rf7 {[%clk 0:00:23]} 33. c4 {[%clk 0:00:46]}  Rb7 {[%clk 0:00:22]} 34. b3 {[%clk 0:00:45]}  g5 {[%clk 0:00:21]} 35. c5 {[%clk 0:00:43]}  a5 {[%clk 0:00:19]} 36. Ra6 {[%clk 0:00:42]}  Rb5 {[%clk 0:00:19]} 37. c6 {[%clk 0:00:39]}  Rb8 {[%clk 0:00:17]} 38. Rxa5 {[%clk 0:00:38]} 1-0

[Event "December 19 Early 2023"]
[Site "https://www.chess.com"]
[Date "2023.12.19"]
[Round "6"]
[White "Nikulina, Alena"]
[Black "Floresvillar Gonzalez, Luis Migu"]
[Result "1-0"]
[Board "208"]
[TimeControl "180+1"]
[WhiteFideId "4172051"]
[BlackFideId "5100542"]
[WhiteElo "1627"]
[BlackElo "2040"]
[WhiteTeam "RUS"]
[BlackTeam "MEX"]
[WhiteClock "0:00:03"]
[BlackClock "0:00:00"]

1. e4 {[%clk 0:03:00]}  c6 {[%clk 0:02:37]} 2. Nc3 {[%clk 0:02:59]}  d5 {[%clk 0:02:37]} 3. Qe2 {[%clk 0:02:59]}  dxe4 {[%clk 0:02:29]} 4. Nxe4 {[%clk 0:02:57]}  Bf5 {[%clk 0:02:24]} 5. g3 {[%clk 0:02:56]}  e6 {[%clk 0:02:20]} 6. Bg2 {[%clk 0:02:52]}  Nd7 {[%clk 0:02:17]} 7. d4 {[%clk 0:02:39]}  Ngf6 {[%clk 0:02:16]} 8. Nxf6+ {[%clk 0:02:32]}  Nxf6 {[%clk 0:02:15]} 9. c3 {[%clk 0:02:30]}  c5 {[%clk 0:02:09]} 10. Nf3 {[%clk 0:02:27]}  Be7 {[%clk 0:02:05]} 11. O-O {[%clk 0:02:19]}  O-O {[%clk 0:02:04]} 12. dxc5 {[%clk 0:02:15]}  Bxc5 {[%clk 0:02:01]} 13. Bg5 {[%clk 0:02:15]}  h6 {[%clk 0:01:36]} 14. Bf4 {[%clk 0:02:03]}  Nd5 {[%clk 0:01:28]} 15. Be5 {[%clk 0:01:51]}  Qe7 {[%clk 0:01:25]} 16. Bd4 {[%clk 0:01:36]}  Bg4 {[%clk 0:01:23]} 17. Qe5 {[%clk 0:01:24]}  Bxd4 {[%clk 0:01:13]} 18. Nxd4 {[%clk 0:01:17]}  Rad8 {[%clk 0:00:54]} 19. h3 {[%clk 0:01:05]}  Bf5 {[%clk 0:00:42]} 20. Nxf5 {[%clk 0:00:58]}  exf5 {[%clk 0:00:41]} 21. Qxf5 {[%clk 0:00:48]}  Qf6 {[%clk 0:00:35]} 22. Qxf6 {[%clk 0:00:41]}  Nxf6 {[%clk 0:00:34]} 23. Rfd1 {[%clk 0:00:42]}  b6 {[%clk 0:00:31]} 24. Kf1 {[%clk 0:00:40]}  g5 {[%clk 0:00:28]} 25. a4 {[%clk 0:00:36]}  Kg7 {[%clk 0:00:28]} 26. Rd4 {[%clk 0:00:27]}  Rxd4 {[%clk 0:00:26]} 27. cxd4 {[%clk 0:00:27]}  Rd8 {[%clk 0:00:26]} 28. Rd1 {[%clk 0:00:28]}  Nd5 {[%clk 0:00:25]} 29. Ke2 {[%clk 0:00:26]}  f5 {[%clk 0:00:22]} 30. Bxd5 {[%clk 0:00:26]}  Rxd5 {[%clk 0:00:21]} 31. Kd3 {[%clk 0:00:26]}  Kf6 {[%clk 0:00:18]} 32. Rc1 {[%clk 0:00:24]}  b5 {[%clk 0:00:13]} 33. Rc5 {[%clk 0:00:18]}  Rxc5 {[%clk 0:00:09]} 34. dxc5 {[%clk 0:00:18]}  bxa4 {[%clk 0:00:10]} 35. Kc4 {[%clk 0:00:15]}  Ke6 {[%clk 0:00:09]} 36. Kb5 {[%clk 0:00:08]}  Kd5 {[%clk 0:00:09]} 37. f3 {[%clk 0:00:06]}  h5 {[%clk 0:00:06]} 38. h4 {[%clk 0:00:05]}  gxh4 {[%clk 0:00:05]} 39. gxh4 {[%clk 0:00:05]}  f4 {[%clk 0:00:05]} 40. Kxa4 {[%clk 0:00:03]}  Kxc5 {[%clk 0:00:04]} 41. Ka5 {[%clk 0:00:03]}  Kc4 {[%clk 0:00:00]} 42. b4 {[%clk 0:00:03]} 1-0

[Event "December 19 Early 2023"]
[Site "https://www.chess.com"]
[Date "2023.12.19"]
[Round "6"]
[White "Tilahun , Abel Mathewos"]
[Black "Kuchava, Ana"]
[Result "0-1"]
[Board "209"]
[TimeControl "180+1"]
[WhiteFideId "15702391"]
[BlackFideId "13605348"]
[WhiteElo "1917"]
[BlackElo "1950"]
[WhiteTeam "ETH"]
[BlackTeam "GEO"]
[WhiteClock "0:00:27"]
[BlackClock "0:01:24"]

1. d4 {[%clk 0:03:00]}  d5 {[%clk 0:02:59]} 2. c4 {[%clk 0:02:59]}  e6 {[%clk 0:02:57]} 3. Nf3 {[%clk 0:03:00]}  Nf6 {[%clk 0:02:55]} 4. Nc3 {[%clk 0:03:00]}  Be7 {[%clk 0:02:55]} 5. Bf4 {[%clk 0:03:00]}  c5 {[%clk 0:02:54]} 6. e3 {[%clk 0:02:59]}  Nc6 {[%clk 0:02:52]} 7. dxc5 {[%clk 0:02:58]}  Bxc5 {[%clk 0:02:53]} 8. a3 {[%clk 0:02:57]}  O-O {[%clk 0:02:52]} 9. Bd3 {[%clk 0:02:57]}  a6 {[%clk 0:02:48]} 10. O-O {[%clk 0:02:54]}  dxc4 {[%clk 0:02:45]} 11. Bxc4 {[%clk 0:02:55]}  Qxd1 {[%clk 0:02:44]} 12. Raxd1 {[%clk 0:02:53]}  b5 {[%clk 0:02:45]} 13. Bd3 {[%clk 0:02:52]}  Bb7 {[%clk 0:02:44]} 14. Ne4 {[%clk 0:02:52]}  Be7 {[%clk 0:02:28]} 15. Ne5 {[%clk 0:02:34]}  Nxe5 {[%clk 0:02:22]} 16. Bxe5 {[%clk 0:02:09]}  Nxe4 {[%clk 0:02:16]} 17. Bxe4 {[%clk 0:02:06]}  Bxe4 {[%clk 0:02:17]} 18. Rd7 {[%clk 0:02:06]}  Bf6 {[%clk 0:02:14]} 19. Bxf6 {[%clk 0:02:04]}  gxf6 {[%clk 0:02:15]} 20. Rfd1 {[%clk 0:02:00]}  f5 {[%clk 0:02:12]} 21. f3 {[%clk 0:01:49]}  Bd5 {[%clk 0:02:10]} 22. g4 {[%clk 0:01:39]}  Bxf3 {[%clk 0:02:08]} 23. R1d4 {[%clk 0:01:38]}  fxg4 {[%clk 0:02:06]} 24. h3 {[%clk 0:01:36]}  h5 {[%clk 0:02:05]} 25. Kf2 {[%clk 0:01:35]}  Rac8 {[%clk 0:02:03]} 26. Kg3 {[%clk 0:01:35]}  Rc2 {[%clk 0:01:56]} 27. hxg4 {[%clk 0:01:27]}  hxg4 {[%clk 0:01:55]} 28. Kf4 {[%clk 0:01:26]}  Kg7 {[%clk 0:01:47]} 29. Kg5 {[%clk 0:01:16]}  g3 {[%clk 0:01:38]} 30. R4d6 {[%clk 0:00:37]}  g2 {[%clk 0:01:34]} 31. Kf4 {[%clk 0:00:33]}  g1=Q {[%clk 0:01:25]} 32. Kxf3 {[%clk 0:00:28]}  Rf2+ {[%clk 0:01:24]} 33. Ke4 {[%clk 0:00:28]}  Qg4+ {[%clk 0:01:24]} 34. Kd3 {[%clk 0:00:27]}  Qc4# {[%clk 0:01:24]} 0-1

[Event "December 19 Early 2023"]
[Site "https://www.chess.com"]
[Date "2023.12.19"]
[Round "6"]
[White "Donatti, Alvaro"]
[Black "SulfatoFerroso"]
[Result "1-0"]
[Board "212"]
[TimeControl "180+1"]
[WhiteFideId "3000303"]
[WhiteElo "2138"]
[BlackElo "1904"]
[WhiteTeam "URU"]
[WhiteClock "0:00:02"]
[BlackClock "0:00:00"]

1. e4 {[%clk 0:03:00]}  c5 {[%clk 0:02:59]} 2. Nf3 {[%clk 0:03:00]}  e6 {[%clk 0:02:59]} 3. d4 {[%clk 0:02:58]}  cxd4 {[%clk 0:02:58]} 4. Nxd4 {[%clk 0:02:58]}  Nc6 {[%clk 0:02:59]} 5. Nc3 {[%clk 0:02:56]}  Qc7 {[%clk 0:02:59]} 6. Ndb5 {[%clk 0:02:51]}  Qb8 {[%clk 0:02:58]} 7. Be3 {[%clk 0:02:44]}  a6 {[%clk 0:02:55]} 8. Nd4 {[%clk 0:02:43]}  Nf6 {[%clk 0:02:45]} 9. g3 {[%clk 0:02:39]}  Bb4 {[%clk 0:02:14]} 10. Bg2 {[%clk 0:02:37]}  O-O {[%clk 0:02:06]} 11. O-O {[%clk 0:02:36]}  Bxc3 {[%clk 0:01:44]} 12. bxc3 {[%clk 0:02:35]}  Qe5 {[%clk 0:01:35]} 13. f4 {[%clk 0:01:51]}  Qa5 {[%clk 0:01:34]} 14. Qd3 {[%clk 0:01:22]}  d5 {[%clk 0:01:33]} 15. e5 {[%clk 0:01:10]}  Nd7 {[%clk 0:01:12]} 16. c4 {[%clk 0:00:47]}  Nc5 {[%clk 0:00:37]} 17. Qe2 {[%clk 0:00:46]}  dxc4 {[%clk 0:00:12]} 18. Qxc4 {[%clk 0:00:41]}  Nxd4 {[%clk 0:00:13]} 19. Bxd4 {[%clk 0:00:35]}  Nd7 {[%clk 0:00:11]} 20. Rab1 {[%clk 0:00:28]}  b5 {[%clk 0:00:10]} 21. Qd3 {[%clk 0:00:19]}  Rb8 {[%clk 0:00:10]} 22. Qe3 {[%clk 0:00:12]}  Qxa2 {[%clk 0:00:08]} 23. Ba7 {[%clk 0:00:09]}  Rb7 {[%clk 0:00:07]} 24. Bxb7 {[%clk 0:00:07]}  Bxb7 {[%clk 0:00:08]} 25. Rbc1 {[%clk 0:00:04]}  Qd5 {[%clk 0:00:08]} 26. Qf3 {[%clk 0:00:02]}  Qxf3 {[%clk 0:00:01]} 27. Rxf3 {[%clk 0:00:02]}  Bxf3 {[%clk 0:00:01]} 28. Kf2 {[%clk 0:00:02]}  Bd5 {[%clk 0:00:01]} 29. Ra1 {[%clk 0:00:02]}  Rc8 {[%clk 0:00:01]} 30. Rxa6 {[%clk 0:00:01]}  Rxc2+ {[%clk 0:00:01]} 31. Ke3 {[%clk 0:00:02]}  h6 {[%clk 0:00:00]} 32. Kd4 {[%clk 0:00:02]} 1-0

[Event "December 19 Early 2023"]
[Site "https://www.chess.com"]
[Date "2023.12.19"]
[Round "6"]
[White "Ghosh, Chanchal Kumer"]
[Black "Alves Campelo, Danilo Cesar De L"]
[Result "1-0"]
[Board "213"]
[TimeControl "180+1"]
[WhiteFideId "10201858"]
[BlackFideId "2123657"]
[WhiteElo "2067"]
[BlackElo "1994"]
[WhiteTeam "BAN"]
[BlackTeam "BRA"]
[WhiteClock "0:00:36"]
[BlackClock "0:00:00"]

1. e4 {[%clk 0:02:52]}  e6 {[%clk 0:03:00]} 2. Nf3 {[%clk 0:02:52]}  d5 {[%clk 0:03:01]} 3. Nc3 {[%clk 0:02:51]}  d4 {[%clk 0:03:01]} 4. Ne2 {[%clk 0:02:51]}  c5 {[%clk 0:03:02]} 5. c3 {[%clk 0:02:52]}  dxc3 {[%clk 0:02:47]} 6. bxc3 {[%clk 0:02:44]}  Nf6 {[%clk 0:02:48]} 7. d3 {[%clk 0:02:43]}  Nc6 {[%clk 0:02:46]} 8. g3 {[%clk 0:02:41]}  Qa5 {[%clk 0:02:21]} 9. Bd2 {[%clk 0:02:30]}  c4 {[%clk 0:02:10]} 10. Ned4 {[%clk 0:02:09]}  Bd7 {[%clk 0:01:25]} 11. Nxc6 {[%clk 0:01:43]}  Bxc6 {[%clk 0:01:24]} 12. e5 {[%clk 0:01:43]}  Nd5 {[%clk 0:01:21]} 13. Bg2 {[%clk 0:01:38]}  Nb6 {[%clk 0:00:40]} 14. d4 {[%clk 0:01:23]}  Be7 {[%clk 0:00:39]} 15. O-O {[%clk 0:01:22]}  O-O {[%clk 0:00:39]} 16. Re1 {[%clk 0:01:22]}  Rad8 {[%clk 0:00:38]} 17. Qe2 {[%clk 0:01:21]}  Bd5 {[%clk 0:00:29]} 18. Rec1 {[%clk 0:01:14]}  Na4 {[%clk 0:00:27]} 19. Ne1 {[%clk 0:01:05]}  Ba3 {[%clk 0:00:26]} 20. Rc2 {[%clk 0:01:03]}  Bb2 {[%clk 0:00:25]} 21. Rb1 {[%clk 0:00:55]}  Nxc3 {[%clk 0:00:21]} 22. Qe3 {[%clk 0:00:46]}  Bxg2 {[%clk 0:00:15]} 23. Rbxb2 {[%clk 0:00:42]}  Nd5 {[%clk 0:00:08]} 24. Bxa5 {[%clk 0:00:39]}  Nxe3 {[%clk 0:00:08]} 25. fxe3 {[%clk 0:00:40]}  b6 {[%clk 0:00:03]} 26. Bxb6 {[%clk 0:00:37]}  axb6 {[%clk 0:00:03]} 27. Nxg2 {[%clk 0:00:36]}  c3 {[%clk 0:00:00]} 28. Rxc3 {[%clk 0:00:36]} 1-0